lending/lending_fUSD_20240604
["ID","MTS","AMOUNT","RATE_DAILY","PERIOD"]
[328569756,1717543848801,-500.0,0.00029589,2]
[328569757,1717543848810,-500.0,0.00029589,2]
[328569758,1717543848819,-500.0,0.00029589,2]
[328569759,1717543848829,-500.0,0.00029589,6]
[328569760,1717543848838,-500.0,0.00029589,6]
[328569761,1717543848848,-500.0,0.00029589,6]
[328569762,1717543848858,-500.0,0.00029589,6]
[328569763,1717543848867,-500.0,0.00029589,6]
[328569764,1717543848876,-500.0,0.00029589,6]
[328569765,1717543848890,-846.2,0.00029589,6]
[328569766,1717543848899,-846.2,0.00029589,6]
[328569767,1717543848908,-500.0,0.00029589,6]
[328569768,1717543848918,-500.0,0.00029589,6]
[328569769,1717543848929,-500.0,0.00029589,6]
[328569770,1717543848938,-170.85,0.00029589,6]
[328569771,1717543848947,-706.73,0.00029589,6]
[328569772,1717543848958,-706.73,0.00029589,6]
[328569773,1717543848968,-500.0,0.00029589,6]
[328569774,1717543848978,-500.0,0.00029589,6]
[328569775,1717543848987,-500.0,0.00029589,6]
[328569776,1717543848996,-1031.66,0.00029589,6]
[328569777,1717543849006,-1031.66,0.00029589,6]
[328569778,1717543849015,-500.0,0.00029589,6]
[328569779,1717543849024,-500.0,0.00029589,6]
[328569780,1717543849033,-500.0,0.00029589,6]
[328569781,1717543849043,-500.0,0.00029589,6]
[328569782,1717543849053,-500.0,0.00029589,6]
[328569783,1717543849062,-500.0,0.00029589,6]
[328569784,1717543849071,-500.0,0.00029589,6]
[328569785,1717543849080,-6298.96,0.00029589,6]
[328569786,1717543849089,-155.31111537,0.00029589,2]
[328569787,1717543849098,-6298.96,0.00029589,6]
[328569788,1717543849108,-6298.96,0.00029589,6]
[328569789,1717543849117,-500.0,0.00029589,6]
[328569790,1717543849126,-500.0,0.00029589,6]
[328569791,1717543849135,-500.0,0.00029589,6]
[328569792,1717543849144,-500.0,0.00029589,6]
[328569793,1717543849153,-548.72,0.00029589,2]
[328569794,1717543849162,-500.0,0.00029589,6]
[328569795,1717543849171,-500.0,0.00029589,6]
[328569796,1717543849181,-500.0,0.00029589,6]
[328569797,1717543849190,-500.0,0.00029589,6]
[328569798,1717543849199,-500.0,0.00029589,6]
[328569799,1717543849208,-500.0,0.00029589,6]
[328569800,1717543849218,-500.0,0.00029589,6]
[328569801,1717543849227,-500.0,0.00029589,6]
[328569802,1717543849236,-500.0,0.00029589,6]
[328569803,1717543849245,-500.0,0.00029589,6]
[328569804,1717543849254,-500.0,0.00029589,6]
[328569805,1717543849263,-265.105,0.00029589,6]
[328569806,1717543849273,-500.0,0.00029589,6]
[328569807,1717543849282,-500.0,0.00029589,6]
[328569808,1717543849291,-500.0,0.00029589,6]
[328569809,1717543849300,-500.0,0.00029589,6]
[328569810,1717543849309,-500.0,0.00029589,6]
[328569811,1717543849319,-500.0,0.00029589,6]
[328569812,1717543849328,-500.0,0.00029589,6]
[328569813,1717543849337,-500.0,0.00029589,6]
[328569814,1717543849346,-500.0,0.00029589,6]
[328569815,1717543849355,-500.0,0.00029589,6]
[328569816,1717543849364,-500.0,0.00029589,6]
[328569817,1717543849373,-500.0,0.00029589,6]
[328569818,1717543849382,-500.0,0.00029589,6]
[328569819,1717543849391,-503.24278619,0.00029589,2]
[328569820,1717543849399,-500.0,0.00029589,6]
[328569821,1717543849408,-548.22,0.00029589,6]
[328569822,1717543849417,-548.22,0.00029589,6]
[328569823,1717543849426,-1108.36,0.00029589,6]
[328569824,1717543849438,-1108.36,0.00029589,6]
[328569825,1717543849449,-1108.36,0.00029589,6]
[328569826,1717543849459,-500.0,0.00029589,6]
[328569827,1717543849468,-500.0,0.00029589,6]
[328569828,1717543849477,-500.0,0.00029589,6]
[328569829,1717543849487,-500.0,0.00029589,6]
[328569830,1717543849496,-500.0,0.00029589,6]
[328569831,1717543849505,-531.87513474,0.00029589,6]
[328569832,1717543849514,-4035.96,0.00029589,6]
[328569833,1717543849524,-4035.96,0.00029589,6]
[328569834,1717543849534,-10406.23386536,0.00029589,2]
[328569835,1717543849544,-2757.12,0.00029591,2]
[328569836,1717543849553,-1534.93,0.000296,2]
[328569837,1717543849562,-1299.12,0.000296,2]
[328569838,1717543849571,-2745.0,0.000296,2]
[328569839,1717543849580,-3994.8979293,0.00029607,2]
[328569840,1717543849590,-500.0,0.00029624,6]
[328569841,1717543849599,-500.0,0.00029624,6]
[328569842,1717543849609,-500.0,0.00029624,6]
[328569843,1717543849618,-500.0,0.00029624,6]
[328569844,1717543849627,-500.0,0.00029624,6]
[328569845,1717543849636,-500.0,0.00029624,6]
[328569846,1717543849646,-500.0,0.00029624,6]
[328569847,1717543849655,-1178.39,0.00029624,6]
[328569848,1717543849664,-500.0,0.00029624,6]
[328569849,1717543849673,-500.0,0.00029624,6]
[328569850,1717543849682,-1253.12,0.00029624,6]
[328569851,1717543849692,-500.0,0.00029624,6]
[328569852,1717543849701,-500.0,0.00029624,6]
[328569853,1717543849711,-511.9,0.00029624,6]
[328569854,1717543849721,-512.05,0.00029624,6]
[328569855,1717543849731,-1013.23,0.00029624,6]
[328569856,1717543849740,-500.0,0.00029624,6]
[328569857,1717543849749,-706.73,0.00029624,6]
[328569858,1717543849758,-1031.66,0.00029624,6]
[328569859,1717543849767,-500.0,0.00029624,6]
[328569860,1717543849776,-500.0,0.00029624,6]
[328569861,1717543849785,-500.0,0.00029624,6]
[328569862,1717543849795,-500.0,0.00029624,6]
[328569863,1717543849803,-500.0,0.00029624,6]
[328569864,1717543849812,-500.0,0.00029624,6]
[328569865,1717543849822,-500.0,0.00029624,6]
[328569866,1717543849830,-500.0,0.00029624,6]
[328569867,1717543849840,-500.0,0.00029624,6]
[328569868,1717543849849,-500.0,0.00029624,6]
[328569869,1717543849858,-500.0,0.00029624,6]
[328569870,1717543849868,-500.0,0.00029624,6]
[328569871,1717543849877,-500.0,0.00029624,6]
[328569872,1717543849891,-548.22,0.00029624,6]
[328569873,1717543849901,-500.0,0.00029624,6]
[328569874,1717543849910,-4035.96,0.00029624,6]
[328569875,1717543849919,-500.0,0.00029625,6]
[328569876,1717543849930,-500.0,0.00029625,6]
[328569877,1717543849940,-500.0,0.00029625,6]
[328569878,1717543849949,-500.0,0.00029625,6]
[328569879,1717543849960,-500.0,0.00029625,6]
[328569880,1717543849971,-500.0,0.00029625,6]
[328569881,1717543849983,-500.0,0.00029625,6]
[328569882,1717543849993,-500.0,0.00029625,6]
[328569883,1717543850002,-500.0,0.00029625,6]
[328569884,1717543850011,-500.0,0.00029625,6]
[328569885,1717543850021,-500.0,0.00029625,6]
[328569886,1717543850030,-500.0,0.00029625,6]
[328569887,1717543850039,-227.29,0.00029625,6]
[328569888,1717543850048,-500.0,0.00029625,6]
[328569889,1717543850058,-581.18,0.00029625,6]
[328569890,1717543850067,-500.0,0.00029625,6]
[328569891,1717543850076,-897.76,0.00029625,6]
[328569892,1717543850086,-448.76,0.00029625,6]
[328569893,1717543850095,-1919.78,0.00029625,6]
[328569894,1717543850104,-500.0,0.00029625,6]
[328569895,1717543850113,-732.36,0.00029625,6]
[328569896,1717543850123,-1196.28,0.00029625,6]
[328569897,1717543850133,-500.0,0.00029625,6]
[328569898,1717543850143,-500.0,0.00029625,6]
[328569899,1717543850152,-500.0,0.00029625,6]
[328569900,1717543850162,-681.33,0.00029625,6]
[328569901,1717543850171,-1068.79,0.00029625,6]
[328569902,1717543850180,-2304.21,0.00029625,6]
[328569903,1717543850189,-5350.88,0.00029625,6]
[328569904,1717543850199,-500.0,0.00029625,6]
[328569905,1717543850367,-500.0,0.00029625,6]
[328569906,1717543850377,-1108.36,0.00029625,6]
[328569907,1717543850387,-200.48772905,0.00029626,15]
[328569908,1717543850396,-26607.02619375,0.00029626,15]
[328569909,1717543850406,-1259.18,0.00029635,2]
[328569910,1717543850416,-3994.8979293,0.00029637,2]
[328569911,1717543850425,-500.0,0.00029638,6]
[328569912,1717543850435,-500.0,0.00029638,6]
[328569913,1717543850445,-500.0,0.00029638,6]
[328569914,1717543850454,-618.58,0.00029638,6]
[328569915,1717543850464,-500.0,0.00029638,6]
[328569916,1717543850474,-500.0,0.00029638,6]
[328569917,1717543850483,-500.0,0.00029638,6]
[328569918,1717543850491,-500.0,0.00029638,6]
[328569919,1717543850500,-500.0,0.00029638,6]
[328569920,1717543850510,-619.31,0.00029638,6]
[328569921,1717543850520,-500.0,0.00029638,6]
[328569922,1717543850529,-500.0,0.00029638,6]
[328569923,1717543850538,-510.58472244,0.00029638,6]
[328569924,1717543850548,-500.0,0.00029638,6]
[328569925,1717543850557,-500.0,0.00029638,6]
[328569926,1717543850567,-674.31,0.00029638,6]
[328569927,1717543850576,-500.0,0.00029638,6]
[328569928,1717543850585,-500.0,0.00029638,6]
[328569929,1717543850595,-500.0,0.00029638,6]
[328569930,1717543850605,-500.0,0.00029638,6]
[328569931,1717543850614,-500.0,0.00029638,6]
[328569932,1717543850623,-626.39,0.00029638,6]
[328569933,1717543850633,-1555.58,0.00029638,6]
[328569934,1717543850643,-525.62,0.00029638,6]
[328569935,1717543850652,-500.0,0.00029638,6]
[328569936,1717543850662,-717.34,0.00029638,6]
[328569937,1717543850674,-1219.01,0.00029638,6]
[328569938,1717543850683,-4752.44,0.00029638,6]
[328569939,1717543850693,-500.0,0.00029638,6]
[328569940,1717543850702,-500.0,0.00029638,6]
[328569941,1717543850712,-500.0,0.00029638,6]
[328569942,1717543850723,-500.0,0.00029638,6]
[328569943,1717543850733,-516.48,0.00029638,6]
[328569944,1717543850742,-500.0,0.00029638,6]
[328569945,1717543850752,-500.0,0.00029638,6]
[328569946,1717543850761,-846.2,0.00029638,6]
[328569947,1717543850771,-562.22006389,0.00029638,6]
[328569948,1717543850780,-6298.96,0.00029638,6]
[328569949,1717543850789,-527.63862342,0.00029638,6]
[328569950,1717543850799,-500.0,0.00029638,6]
[328569951,1717543850808,-500.0,0.00029638,6]
[328569952,1717543850817,-16097.0,0.00029644,5]
[328569953,1717543850826,-256.87384798,0.00029655,2]
[328569954,1717543850836,-303.67594438,0.00029665,6]
[328569955,1717543850845,-151.91567307,0.00029665,6]
[328569956,1717543850855,-500.0,0.00029665,6]
[328569957,1717543850864,-632.09565288,0.00029665,6]
[328569958,1717543850874,-500.0,0.00029665,6]
[328569959,1717543850887,-500.0,0.00029665,6]
[328569960,1717543850897,-500.0,0.00029665,6]
[328569961,1717543850906,-500.0,0.00029665,6]
[328569962,1717543850915,-500.0,0.00029665,6]
[328569963,1717543850926,-500.0,0.00029665,6]
[328569964,1717543850934,-500.0,0.00029665,6]
[328569965,1717543850944,-500.0,0.00029665,6]
[328569966,1717543850953,-500.0,0.00029665,6]
[328569967,1717543850965,-500.0,0.00029665,6]
[328569968,1717543850975,-500.0,0.00029665,6]
[328569969,1717543850984,-500.0,0.00029665,6]
[328569970,1717543850994,-500.0,0.00029665,6]
[328569971,1717543851003,-500.0,0.00029665,6]
[328569972,1717543851012,-500.0,0.00029665,6]
[328569973,1717543851023,-500.0,0.00029665,6]
[328569974,1717543851032,-500.0,0.00029665,6]
[328569975,1717543851042,-500.0,0.00029665,6]
[328569976,1717543851051,-552.17,0.00029665,6]
[328569977,1717543851061,-500.0,0.00029665,6]
[328569978,1717543851070,-500.0,0.00029665,6]
[328569979,1717543851080,-500.0,0.00029665,6]
[328569980,1717543851089,-2582.52,0.00029665,6]
[328569981,1717543851098,-500.0,0.00029665,6]
[328569982,1717543851108,-500.0,0.00029665,6]
[328569983,1717543851117,-500.0,0.00029665,6]
[328569984,1717543851126,-500.0,0.00029665,6]
[328569985,1717543851137,-500.0,0.00029665,6]
[328569986,1717543851146,-500.0,0.00029665,6]
[328569987,1717543851156,-3994.8979293,0.00029666,2]
[328569988,1717543851165,-152.46932618,0.00029667,2]
[328569989,1717543851175,-210.36986428,0.00029669,2]
[328569990,1717543851185,-152.35312274,0.00029671,2]
[328569991,1717543851194,-200.48772905,0.00029672,15]
[328569992,1717543851204,-26607.02619375,0.00029672,15]
[328569993,1717543851213,-252.89515552,0.00029678,2]
[328569994,1717543851222,-180.0,0.00029693,2]
[328569995,1717543851232,-3994.8979293,0.00029695,2]
[328569996,1717543851242,-11651.28584138,0.000297,2]
[328569997,1717543851251,-151.0,0.00029705,7]
[328569998,1717543851261,-152.0,0.00029707,4]
[328569999,1717543851270,-200.48772905,0.00029717,15]
[328570000,1717543851280,-507.09,0.00029718,2]
[328570001,1717543851289,-3994.8979293,0.00029724,2]
[328570002,1717543851299,-150.0,0.00029725,2]
[328570003,1717543851308,-152.35312274,0.00029739,2]
[328570004,1717543851318,-3994.8979293,0.00029754,2]
[328570005,1717543851327,-200.48772905,0.00029763,15]
[328570006,1717543851337,-295.27,0.00029767,2]
[328570007,1717543851347,-3994.8979293,0.00029783,2]
[328570008,1717543851356,-152.46932618,0.00029784,2]
[328570009,1717543851366,-3592.99,0.00029798,2]
[328570010,1717543851375,-500.0,0.00029799,6]
[328570011,1717543851385,-500.0,0.00029799,6]
[328570012,1717543851394,-500.0,0.00029799,6]
[328570013,1717543851403,-500.0,0.00029799,6]
[328570014,1717543851413,-500.0,0.00029799,6]
[328570015,1717543851423,-500.0,0.00029799,6]
[328570016,1717543851432,-500.0,0.00029799,6]
[328570017,1717543851442,-500.0,0.00029799,6]
[328570018,1717543851452,-500.0,0.00029799,6]
[328570019,1717543851461,-500.0,0.00029799,6]
[328570020,1717543851471,-500.0,0.00029799,6]
[328570021,1717543851480,-500.0,0.00029799,6]
[328570022,1717543851490,-581.18,0.00029799,6]
[328570023,1717543851499,-500.0,0.00029799,6]
[328570024,1717543851509,-897.76,0.00029799,6]
[328570025,1717543851518,-1919.78,0.00029799,6]
[328570026,1717543851528,-500.0,0.00029799,6]
[328570027,1717543851538,-732.36,0.00029799,6]
[328570028,1717543851547,-1196.28,0.00029799,6]
[328570029,1717543851556,-500.0,0.00029799,6]
[328570030,1717543851566,-500.0,0.00029799,6]
[328570031,1717543851575,-500.0,0.00029799,6]
[328570032,1717543851585,-681.33,0.00029799,6]
[328570033,1717543851595,-1068.79,0.00029799,6]
[328570034,1717543851604,-2304.21,0.00029799,6]
[328570035,1717543851614,-5350.88,0.00029799,6]
[328570036,1717543851623,-500.0,0.00029799,6]
[328570037,1717543851632,-500.0,0.00029799,6]
[328570038,1717543851641,-1694.2043471,0.00029799,2]
[328570039,1717543851650,-175.27213018,0.00029799,2]
[328570040,1717543851659,-1108.36,0.00029799,6]
[328570041,1717543851668,-165.49493537,0.000298,2]
[328570042,1717543851677,-7633.86541975,0.000298,2]
[328570043,1717543851909,-1299.86641925,0.000298,2]
[328570044,1717543851918,-1521.93487,0.000298,2]
[328570045,1717543851929,-500.0,0.00029803,6]
[328570046,1717543851939,-500.0,0.00029803,6]
[328570047,1717543851948,-463.30130809,0.00029803,6]
[328570048,1717543851979,-36.69869191,0.00029803,6]
[328570049,1717543851988,-500.0,0.00029803,6]
[328570050,1717543851997,-500.0,0.00029803,6]
[328570051,1717543852006,-500.0,0.00029803,6]
[328570052,1717543852015,-500.0,0.00029803,6]
[328570053,1717543852025,-356.29881761,0.00029803,6]
[328570054,1717543852037,-822.09118239,0.00029803,6]
[328570055,1717543852046,-500.0,0.00029803,6]
[328570056,1717543852055,-500.0,0.00029803,6]
[328570057,1717543852064,-1253.12,0.00029803,6]
[328570058,1717543852073,-500.0,0.00029803,6]
[328570059,1717543852082,-500.0,0.00029803,6]
[328570060,1717543852091,-511.9,0.00029803,6]
[328570061,1717543852100,-512.05,0.00029803,6]
[328570062,1717543852110,-1013.23,0.00029803,6]
[328570063,1717543852118,-244.21799504,0.00029803,6]
[328570064,1717543852515,-150.0,0.00029348,2]
[328570065,1717543852525,-150.0,0.00029387,2]
[328570066,1717543852534,-150.0,0.00029402,2]
[328570067,1717543852543,-150.0,0.00029419,2]
[328570068,1717543852553,-400.83004493,0.00029548,2]
[328570069,1717543852564,-183.32122789,0.00029548,2]
[328570070,1717543852573,-150.01,0.00029588,2]
[328570071,1717543852583,-255.78200496,0.00029803,6]
[328570072,1717543852627,-706.73,0.00029803,6]
[328570073,1717543852637,-1031.66,0.00029803,6]
[328570074,1717543852646,-500.0,0.00029803,6]
[328570075,1717543852656,-500.0,0.00029803,6]
[328570076,1717543852665,-500.0,0.00029803,6]
[328570077,1717543852674,-500.0,0.00029803,6]
[328570078,1717543852683,-500.0,0.00029803,6]
[328570079,1717543852692,-500.0,0.00029803,6]
[328570080,1717543852701,-500.0,0.00029803,6]
[328570081,1717543852711,-500.0,0.00029803,6]
[328570082,1717543852721,-500.0,0.00029803,6]
[328570083,1717543852731,-500.0,0.00029803,6]
[328570084,1717543852741,-500.0,0.00029803,6]
[328570085,1717543852750,-84.77145754,0.00029803,6]
[328570086,1717543852791,-415.22854246,0.00029803,6]
[328570087,1717543852800,-548.22,0.00029803,6]
[328570088,1717543852809,-500.0,0.00029803,6]
[328570089,1717543852818,-4035.96,0.00029803,6]
[328570090,1717543852828,-306.65004615,0.00029804,6]
[328570091,1717543852868,-150.0,0.00029406,2]
[328570092,1717543852878,-150.0,0.00029438,2]
[328570093,1717543852893,-103.72878672,0.00029567,2]
[328570095,1717543943734,-1676.04530514,0.0003015,120]
[328570096,1717543943770,-200.0,0.00030554,120]
[328570097,1717543943798,-200.0,0.00030554,120]
[328570112,1717545031693,-333.87761899,0.00017242,2]
[328570113,1717545031703,-155.0,0.00017243,2]
[328570114,1717545031713,-2700.0,0.00017255,2]
[328570115,1717545031722,-1488.74285699,0.00017256,2]
[328570116,1717545031732,-411.38464796,0.00019,2]
[328570117,1717545031742,-210.04855086,0.000193,2]
[328570118,1717545031751,-210.04855084,0.000193,2]
[328570119,1717545031760,-210.04855084,0.00019351,2]
[328570120,1717545031769,-893.12,0.00019351,2]
[328570121,1717545031779,-362.77,0.00019351,2]
[328570122,1717545031788,-1000.0,0.00019591,2]
[328570123,1717545031798,-226.54621656,0.000201,2]
[328570124,1717545031807,-155.0,0.00021917,2]
[328570125,1717545031816,-179.58,0.00021918,2]
[328570126,1717545031826,-155.0,0.00021998,2]
[328570127,1717545031836,-789.68098133,0.00022,2]
[328570128,1717545031847,-9021.67005299,0.00022,2]
[328570129,1717545031857,-155.0,0.00023303,2]
[328570130,1717545031866,-188.839,0.00023305,2]
[328570131,1717545031875,-197.514,0.00023305,2]
[328570132,1717545031884,-1034.0,0.00023305,2]
[328570133,1717545031894,-2280.0,0.000238,5]
[328570134,1717545031903,-3223.1109445,0.00024,3]
[328570135,1717545031915,-260.79473481,0.00024,3]
[328570136,1717545031938,-382.09432069,0.00024,3]
[328570137,1717545031949,-583.17736051,0.00024,3]
[328570138,1717545031960,-828.0,0.00024,3]
[328570139,1717545031970,-579.27,0.0002422,2]
[328570141,1717545031979,-152.89,0.00024384,2]
[328570143,1717545031988,-156.9,0.00024384,2]
[328570145,1717545031998,-548.88488712,0.00024443,2]
[328570147,1717545032007,-500.0,0.000245,2]
[328570149,1717545032016,-500.0,0.000245,2]
[328570151,1717545032026,-500.0,0.000245,2]
[328570153,1717545032035,-500.0,0.000245,2]
[328570155,1717545032045,-500.0,0.000245,2]
[328570157,1717545032054,-500.0,0.000245,2]
[328570159,1717545032063,-500.0,0.000245,2]
[328570161,1717545032072,-500.0,0.000245,2]
[328570163,1717545032081,-500.0,0.000245,2]
[328570165,1717545032091,-500.0,0.000245,2]
[328570166,1717545032100,-500.0,0.000245,2]
[328570167,1717545032108,-500.0,0.000245,2]
[328570168,1717545032117,-1482.63822448,0.000245,3]
[328570169,1717545032126,-929.30263012,0.00025,2]
[328570170,1717545032137,-325.64160337,0.00025,2]
[328570171,1717545032147,-500.0,0.00025331,2]
[328570172,1717545032156,-196.44,0.00025382,2]
[328570173,1717545032165,-250.0,0.00025439,2]
[328570174,1717545032174,-250.0,0.00025454,2]
[328570175,1717545032183,-544.36,0.00025528,2]
[328570176,1717545032192,-5574.67,0.00025632,2]
[328570177,1717545032201,-301.16,0.00025923,2]
[328570178,1717545032210,-515.67,0.0002594,2]
[328570180,1717545032220,-4258.47704116,0.00026,2]
[328570181,1717545032229,-515.67,0.00026011,2]
[328570183,1717545032238,-186.65,0.0002602,2]
[328570185,1717545032247,-150.0,0.00026054,2]
[328570187,1717545032256,-1936.65,0.00026079,2]
[328570189,1717545032265,-515.67,0.00026082,2]
[328570192,1717545032275,-489.61,0.0002609,2]
[328570194,1717545032287,-250.0,0.0002609,2]
[328570196,1717545032296,-328.34116078,0.00026101,2]
[328570198,1717545032306,-23880.0,0.00026102,2]
[328570200,1717545032315,-200.0,0.00026104,2]
[328570201,1717545032324,-515.67,0.00026153,2]
[328570204,1717545032335,-515.67,0.00026224,2]
[328570206,1717545032344,-515.67,0.00026295,2]
[328570208,1717545032353,-424.9,0.00026322,2]
[328570209,1717545032364,-515.67,0.00026366,2]
[328570211,1717545032374,-25114.86914332,0.000264,2]
[328570213,1717545032383,-1391.85,0.00026432,2]
[328570215,1717545032393,-515.67,0.00026438,2]
[328570217,1717545032402,-579.27,0.00026484,2]
[328570219,1717545032411,-515.67,0.00026509,2]
[328570221,1717545032421,-175.33,0.00026545,2]
[328570223,1717545032430,-515.67,0.0002658,2]
[328570225,1717545032439,-2054.22929284,0.000266,2]
[328570227,1717545032448,-196.44,0.00026651,2]
[328570229,1717545032457,-515.67,0.00026651,2]
[328570231,1717545032467,-515.67,0.00026722,2]
[328570233,1717545032477,-515.67,0.00026793,2]
[328570235,1717545032486,-515.67,0.00026865,2]
[328570237,1717545032495,-333.0028229,0.00026906,2]
[328570239,1717545032505,-515.67,0.00026936,2]
[328570242,1717545032515,-4025.22914722,0.00027,2]
[328570244,1717545032525,-1084.29656988,0.00027,2]
[328570246,1717545032535,-515.67,0.00027007,2]
[328570248,1717545032546,-346.9,0.00027018,2]
[328570250,1717545032555,-515.67,0.00027078,2]
[328570252,1717545032565,-515.67,0.00027149,2]
[328570254,1717545032574,-515.67,0.0002722,2]
[328570256,1717545032583,-515.67,0.00027291,2]
[328570258,1717545032593,-167.0,0.00027357,2]
[328570260,1717545032602,-243.37243076,0.0002739,2]
[328570261,1717545032612,-545.053978,0.00027606,2]
[328570262,1717545032621,-206.881397,0.00027606,2]
[328570263,1717545032630,-173.321193,0.00027606,2]
[328570264,1717545032639,-1000.0,0.00027638,2]
[328570265,1717545032649,-196.44,0.0002792,2]
[328570266,1717545032659,-545.053978,0.00027951,2]
[328570267,1717545032668,-206.881397,0.00027951,2]
[328570268,1717545032678,-1664.81,0.00028041,2]
[328570269,1717545032687,-173.321193,0.00028066,2]
[328570270,1717545032697,-180.0,0.00028088,2]
[328570271,1717545032706,-308.71703691,0.000282,2]
[328570272,1717545032716,-544.36,0.00028268,2]
[328570273,1717545032725,-545.053978,0.00028296,2]
[328570274,1717545032735,-206.881397,0.00028296,2]
[328570275,1717545032744,-300.0,0.000285,7]
[328570276,1717545032753,-173.321193,0.00028526,2]
[328570277,1717545032762,-545.053978,0.00028641,2]
[328570278,1717545032772,-206.881397,0.00028641,2]
[328570279,1717545032782,-579.27,0.00028748,2]
[328570280,1717545032793,-214.0,0.0002883,2]
[328570281,1717545032804,-400.0,0.000289,10]
[328570282,1717545032815,-327.46329081,0.000289,2]
[328570283,1717545032827,-13303.51309692,0.000289,2]
[328570284,1717545032836,-1063.85609442,0.00028976,2]
[328570285,1717545032846,-545.053978,0.00028986,2]
[328570286,1717545032855,-206.881397,0.00028986,2]
[328570287,1717545032864,-173.321193,0.00028986,2]
[328570288,1717545032874,-265.78771828,0.0002899,2]
[328570289,1717545032883,-12700.67906269,0.00029,3]
[328570290,1717545032893,-5000.0,0.00029,7]
[328570291,1717545032903,-4165.37375278,0.00029,2]
[328570292,1717545032913,-1000.0,0.00029,2]
[328570293,1717545032922,-1053.4601852,0.00029,30]
[328570294,1717545032931,-347.88996852,0.00029,2]
[328570295,1717545032940,-347.88996852,0.00029,2]
[328570296,1717545032949,-347.88996852,0.00029,2]
[328570297,1717545032959,-347.88996852,0.00029,2]
[328570298,1717545032969,-347.88996852,0.00029,2]
[328570299,1717545032978,-347.88996852,0.00029,2]
[328570300,1717545032987,-347.88996852,0.00029,2]
[328570301,1717545032997,-347.88996852,0.00029,2]
[328570302,1717545033006,-347.88996852,0.00029,2]
[328570303,1717545033017,-347.88996852,0.00029,2]
[328570304,1717545033027,-347.88996852,0.00029,2]
[328570305,1717545033037,-347.88996852,0.00029,2]
[328570306,1717545033048,-347.88996852,0.00029,2]
[328570307,1717545033058,-347.88996852,0.00029,2]
[328570308,1717545033067,-347.88996852,0.00029,2]
[328570309,1717545033076,-347.88996852,0.00029,2]
[328570310,1717545033085,-347.88996852,0.00029,2]
[328570311,1717545033095,-347.88996852,0.00029,2]
[328570312,1717545033104,-347.88996852,0.00029,2]
[328570313,1717545033113,-347.88996852,0.00029,2]
[328570314,1717545033124,-347.88996852,0.00029,2]
[328570315,1717545033134,-347.88996852,0.00029,2]
[328570316,1717545033143,-347.88996852,0.00029,2]
[328570317,1717545033153,-347.88996852,0.00029,2]
[328570318,1717545033162,-347.88996852,0.00029,2]
[328570319,1717545033174,-347.88996852,0.00029,2]
[328570320,1717545033184,-347.88996852,0.00029,2]
[328570321,1717545033194,-800.0,0.00029,10]
[328570322,1717545033203,-327.46329078,0.00029011,15]
[328570323,1717545033214,-13303.51309687,0.00029011,15]
[328570324,1717545033224,-872.42,0.00029041,2]